Cogmind - Beta 16 @@@ ROGUE MODE // 2026.01.05 @ 16:11:21 Player: PE-P51 Result: Destroyed by as-44462 with Assembled Blade Performance ------------- Evolutions (0) 0 Regions Visited (0) 0 Robots Destroyed (1) 5 Value Destroyed (53) 53 Prototype IDs (0) 0 Alien Tech Used (0) 0 Bonus (0) 0 TOTAL SCORE: 58 Bonus ------- None Cogmind --------- Core Integrity 0/250 Matter 267/300 Energy 100/100 System Corruption 0% Temperature Cool (0) Movement Core (100) Ox1 Location -11/Scrapyard Parts ------- > --- POWER (1) -------- (None) > --- PROPULSION (2) --- (None) > --- UTILITY (2) ------ Small Storage Unit > --- WEAPON (2) ------- Light Assault Rifle > --- INVENTORY (8) ---- Ion Engine Light Treads Light Treads Wheel Compact Wheel Small Laser Peak State ------------ > --- POWER ------------ Light Ion Engine > --- PROPULSION ------- Aluminum Leg Aluminum Leg > --- UTILITY ---------- Small Storage Unit > --- WEAPON ----------- Assault Rifle Light Assault Rifle > --- INVENTORY -------- Ion Engine Light Treads Light Treads Wheel Compact Wheel Small Laser [Rating: 6] Favorites ----------- Power Light Ion Engine Engine Light Ion Engine Propulsion Aluminum Leg Leg Aluminum Leg Utility Small Storage Unit Storage Small Storage Unit Weapon Light Assault Rifle Ballistic Gun Light Assault Rifle Build | -11 ------- Run | Yrd Slots Evolved . | . Power . | . Propulsion . | . Utility . | . Weapon . | . Parts Attached . | . Power . | . Engine . | . Core . | . Reactor . | . Propulsion . | . Treads . | . Leg . | . Wheel . | . Hover . | . Flight . | . Utility . | . Device . | . Storage . | . Processor . | . Hackware . | . Protection . | . Artifact . | . Weapon . | . Energy Gun . | . Energy Cannon . | . Ballistic Gun . | . Ballistic Cannon . | . Launcher . | . Special Weapon . | . Impact Weapon . | . Slashing Weapon . | . Piercing Weapon . | . Special Melee Weapon . | . Unidentified Prototypes . | . Parts Lost 3 | 3 Power 1 | 1 Propulsion 1 | 1 Utility . | . Weapon 1 | 1 Highest Loss Streak 2 | 2 To Critical Strikes . | . Average Backups 6 | 6 Power 1 | 1 Propulsion 4 | 4 Utility . | . Weapon 1 | 1 Tool/Special . | . Unused Backups 12 | 12 Power 2 | 2 Propulsion 6 | 6 Utility 1 | 1 Weapon 3 | 3 Tool/Special . | . Average Slot Usage (%) . | . Peak Build Rating 6 | 6 Average Rating 5 | 5 On Entrance 6 | 6 Avg Prop Armor Cover (%) . | . Naked Turns . | . Heaviest Build 11 | 11 Greatest Support 20 | 20 Greatest Overweight (x) . | . Average Overweight (x) . | . Largest Inventory Capacity 8 | 8 Average Capacity 8 | 8 Most Carried 6 | 6 Average Carried 6 | 6 Final Capacity 8 | 8 Final Carried 6 | 6 Class Distribution -------------------- None Dominant Class ---------------- None Resources | -11 ----------- Run | Yrd Matter Collected 200 | 200 Remotely . | . Salvage Created 12 | 12 Parts . | . Haulers Intercepted . | . Recyclers Shooed . | . Parts Field Recycled . | . Retrieved Matter . | . Parts Self-Destructed . | . Prevented . | . Parts Restored . | . Kills | -11 ------- Run | Yrd Combat Hostiles Destroyed 2 | 2 Guns 2 | 2 Classes Destroyed 2 | 2 Demolisher 1 | 1 Assembled 1 | 1 Best Kill Streak 1 | 1 Combat Bots Only 1 | 1 Max Kills in Single Turn 1 | 1 Gunslinging . | . Exploded . | . Melee . | . Uniques/NPCs Destroyed . | . Combat | -11 -------- Run | Yrd Hostile Shots Fired 18 | 18 Missed 1 | 1 Hits 17 | 17 Melee 6 | 6 Projectile 11 | 11 AOE 11 | 11 Critical Strikes 1 | 1 Damage Taken 670 | 670 Core 283 | 283 Absorbed by Shields . | . Core Remaining (%) . | . Volleys Fired 15 | 15 Largest 2 | 2 Hottest 40 | 40 Shots Fired 26 | 26 Gun 26 | 26 Cannon . | . Launcher . | . Special . | . Kinetic 26 | 26 Thermal . | . Explosive . | . Electromagnetic . | . Robot Hit Streak 5 | 5 Robot Miss Streak 4 | 4 Penetration Max . | . Secondary Targets . | . Shots Hit Robots 14 | 14 Core Hits 4 | 4 Critical Kills . | . Critical Parts Destroyed . | . Critical Strikes . | . Melee Attacks . | . Impact . | . Slashing . | . Piercing . | . Sneak Attacks . | . Combat Hostiles . | . Follow-up Attacks . | . Damage Inflicted 141 | 141 Guns 141 | 141 Cannons . | . Explosions . | . Melee . | . Ramming . | . Kinetic 141 | 141 Thermal . | . Explosive . | . Electromagnetic . | . Impact . | . Slashing . | . Piercing . | . Highest Corruption . | . Average Corruption . | . Corruption Purged . | . Corruption Blocked . | . Overload Shots . | . Overflow Damage . | . Projectiles . | . Explosions . | . Melee . | . Knockbacks . | . Impact . | . Kinetic . | . Secondary . | . Self-Inflicted Damage . | . Shots . | . Rammed . | . Targets Rammed . | . Kicked . | . Crushed . | . Highest Temperature . | . Average Temperature . | . Received Heat Transfer . | . Siege Activations . | . Martial Activations . | . Shielding Activations . | . Robots Disrupted . | . Combat Hostiles . | . Robots Corrupted . | . Combat Hostiles . | . Parts Fried . | . Impact Corruptions . | . Robots Melted . | . Combat Hostiles . | . Parts Melted . | . Heat Transferred . | . Parts Sabotaged . | . Parts Stolen . | . Parts Stripped . | . Power Chain Reactions . | . Alert | -11 ------- Run | Yrd Maximum Alert Level . | . Low Security (%) 100 | 100 Level 1 . | . Level 2 . | . Level 3 . | . Level 4 . | . Level 5 . | . High Security . | . Max Security . | . Peak Influence 20 | 20 Initial . | . Average 1 | 1 Influence Increases 20 | 20 Destroy 0b10 Robot/C 20 | 20 Influence Decreases 20 | 20 Lost Part 20 | 20 Squads Dispatched . | . Investigation . | . Extermination . | . Reinforcement . | . Assault . | . Garrison . | . Intercept . | . Searches Triggered . | . Construction Impeded . | . Haulers Reinforced . | . Active Scanning Responses . | . Cargo Convoy Interrupts . | . Stealth | -11 --------- Run | Yrd Distress Signals . | . Communications Jammed . | . Distress Signals . | . Times Spotted 4 | 4 Peak Tracking Total 2 | 2 Tactical Retreats . | . Traps | -11 ------- Run | Yrd Traps Triggered . | . Indirectly . | . Trap Hack Attempts . | . Triggered . | . Disarmed . | . Reprogrammed . | . Reused . | . Traps Extracted . | . Installed . | . Triggered . | . Machines | -11 ---------- Run | Yrd Machines Disabled . | . Max in Single Turn . | . Machines Repaired . | . Machines Dismantled . | . Machines Sabotaged . | . Overloaded Fab Kills . | . Hacking | -11 --------- Run | Yrd Machines Accessed . | . Terminals . | . Fabricators . | . Repair Stations . | . Recycling Units . | . Scanalyzers . | . Garrison Access . | . Total Hacks . | . Successful . | . Failed . | . Catastrophic . | . Database Lockouts . | . Manual . | . Terminals . | . Fabricators . | . Repair Stations . | . Recycling Units . | . Scanalyzers . | . Garrison Access . | . Terminal Hacks . | . Fabricator Hacks . | . Repair Station Hacks . | . Recycling Unit Hacks . | . Scanalyzer . | . Garrison Access Hacks . | . Unauthorized Hacks . | . Terminals . | . Fabricators . | . Repair Stations . | . Recycling Units . | . Scanalyzers . | . Garrison Access . | . Data Cores Recovered . | . Used . | . Hacking Detections . | . Full Trace Events . | . Feedback Events . | . Feedback Blocked . | . Robot Schematics Acquired . | . Robots Built . | . Authchips . | . Time . | . Total Robot Build Rating . | . Part Schematics Acquired . | . Parts Built . | . Authchips . | . Time . | . Total Part Build Rating . | . Part Studies Acquired . | . Parts Repaired . | . Time . | . Parts Recycled . | . Recycled Matter . | . Retrieved Matter . | . Retrieved Components . | . Parts Scanalyzed . | . Part Schematics Acquired . | . Parts Damaged . | . Bothacking | -11 ------------ Run | Yrd Used RIF Installer . | . Robots Hacked . | . Non-combat . | . Combat . | . Robot Hacks Applied . | . Relay Couplers Released . | . Fabnet Peak Effective % . | . Robots Rewired . | . Allies Hacked . | . Hacks Repelled . | . Allies | -11 -------- Run | Yrd Total Allies . | . Largest Group . | . Highest-Rated Group . | . Highest-Rated Ally . | . Total Orders . | . Ally Attacks . | . Total Damage . | . Kills . | . Allies Corrupted . | . Allies Melted . | . Intel | -11 ------- Run | Yrd Active Infowar (turns) . | . Robot Analysis Total . | . Derelict Logs Recovered . | . Drone Launches . | . Drone Recoveries . | . Exploration | -11 ------------- Run | Yrd Turns Passed 6112 | 6112 Spaces Moved 566 | 566 Core . | . Treads . | . Legs 566 | 566 Wheels . | . Hover . | . Flight . | . Fastest Speed 120 | 120 Average Speed 120 | 120 Slowest Speed 120 | 120 Overloaded Moves . | . Propulsion Burnouts . | . Robots Hopped . | . Potential Cave-ins . | . Cave-ins Triggered . | . Exploration Rate (%) 82 | 82 Regions Visited . Branch Regions . Pre-discovered Areas . | . Known Exits Taken . | . Unknown Exits Taken . | . Scrap Searched . | . Spaces Dug . | . Terrain Destroyed . | . Melee . | . Projectile . | . AOE . | . Terrain Rammed . | . Walls Destroyed . | . Machines Disabled . | . Actions | -11 --------- Run | Yrd Total 5976 | 5976 Wait 5395 | 5395 Move 566 | 566 Hop . | . Pick Up . | . Fast Attach . | . Attach . | . Detach . | . Swap . | . Drop . | . Fire 15 | 15 Melee . | . Ram . | . Kick . | . Crush . | . Escape Stasis . | . Rewire . | . Trap . | . Miscellaneous . | . Route ------- -11/Scrapyard (discovered 1 exit: [*Mat]) History --------- Turn | Location | Event 12 | -11/Scrapyard | Discovered new exit (range 3) 5556 | -11/Scrapyard | Assembled infested the area 5562 | -11/Scrapyard | Core integrity fell below 50% 6109 | -11/Scrapyard | Core integrity fell below 20% 6113 | -11/Scrapyard | Destroyed by as-44462 with Assembled Blade Last Messages --------------- 01255_ K-01 Serf collects debris. 05556_ ALERT: Infestation in the scrapyard, dispatching Demolisher response squad. 05556_ C-45 Heavy ARC bursts open, deploying its payload. 05556_ D-53 Grenadier unfolds itself. 05558_ The unstable cave ceiling collapses. 05559_ T-07 Excavator destroyed. 05561_ R-06 Scavenger destroyed. 05562_ The unstable cave ceiling collapses. 05563_ D-53 Grenadier destroyed. 05563_ T-07 Excavator destroyed. 05565_ Lgt. Ion Engine destroyed. 05566_ D-53 Grenadier destroyed. 05573_ The unstable cave ceiling collapses. 05897_ T-07 Excavator system terminally corrupted. 06083_ as-59873 destroyed. 06086_ Acquired 12 matter. 06106_ Assault Rifle destroyed. 06106_ Aluminum Leg destroyed. 06111_ Aluminum Leg severed. Map ----- +----------------------------------------------------+ | ????# #??# # #?????????????????????? | | ????#### ####??## # ##?????????????????????? | | ???????# #?????## ##??????????????????????? | | ???????# #??????## ##???????????????????????? | | ???????# #???????#####################??????????? | | ######## %############## # #??????????? | | # #??????????? | | #??????????? | | #### ######## ###### ### # #??????????? | | ?? ???? ??# ## ## #??????????? | | # ?# ?# ## ## #??????????? | | # # ## ## ## #??????????? | | # # ## ## ## #??????????? | | # # ## ## ############??????????? | | # # ## ## #?????????????????????? | | # ######### ## ##????????????????????? | | # #???????# # #????????????????????? | | ################### # #????????????????????? | | ??????????# ####### #????????????????????? | | ??????????# #?????# #????????????????????? | | ?########## #?????## ###########???????????? | | ?# # #??????# # #???????????? | | ?# # #??????# # #???????????? | | ?# #? ???????# #???????????? | | ?# #### ##########a # #???????????? | | ?# @ # #???????????? | | ?# # #? #???????????? | | ?# #### ## #? #???????????? | | ## ## # #? #???????????? | | ## # #?# #######???????????? | | ############ # #?# ##############????? | | #??????# # #?# ## #????? | | #??????# # #?# ## #????? | | #??????# # ### ## #????? | | #??????# # # # #????? | | #??????# # #????? | | #??????## # #????? | | ?####???????##### ####### # #######????? | | ????????########## ####????## #########??????????? | | ????????# #???? ?????????????????? | | ????????# #?? ????????????????? | | ????????# #? ??????????????? | | ????????# # ?????????????? | | ????????# ## ##????????????? | | ????????## # ## ##?????????????? | | ?????????###?######################??????????????? | | | | | | | | | +----------------------------------------------------+ Best States ------------- Heat Dissipation 25 Energy Generation 10 Energy Capacity 125 Matter Stores 288 Matter Capacity 300 Sight Range 16 Terrain Scan Density 10 Evasion (%) 55 Item Schematics ----------------- None Robot Schematics ------------------ None Fabricated ------------ Nothing Repaired ---------- Nothing Studied --------- None Alien Tech Used ----------------- None Achievements -------------- None Challenges ------------ None Game ------ Seed DamperCoolingFlakker Manual? 0 Play Time 00:10:18 Cumulative 267.8 hours Start 2026.01.05 @ 16:03:07 End 2026.01.05 @ 16:11:21 Sessions 0 Manual Loads 0 Difficulty Rogue Special Mode None Game No. 343 Rogue 342 Adventurer 1 Explorer 0 Win Type - Total 2 Types 1/0/0/1/0/0/0/0/0/0 Lore% 73 Gallery% 67 Achievement% 56 Wizard Run 0 Options --------- Layout 0 ASCII 0 Keyboard 0 Movement Numpad Keybinds 0 Fullscreen 1 Font 24/Smallcaps Map View 76x50 Zoom Use 0% Tactical HUD 1 Map Filters NONE Filters NONE Steam 1 RUN: 96f743f3-1b9b-4044-8cb0-7a6c9f745886